[Event "Danish Skakligaen 2024-25"]
[Site "Denmark"]
[Date "2024.11.02"]
[Round "1.8"]
[White "Henriksen, Kasper"]
[Black "Berg, Klaus"]
[Result "1-0"]
[ECO "D27"]
[WhiteElo "2102"]
[BlackElo "2265"]
[Annotator "RC"]
[PlyCount "79"]
[EventDate "2024.11.02"]
[EventType "team-tourn"]
[EventCountry "DEN"]
[SourceTitle "playchess.com"]
[Source "ChessBase"]
[SourceQuality "1"]
[TimeControl "40/5400+30:1800+30"]

1. d4 {[%emt 0:00:03]} Nf6 {[%emt 0:00:18]} 2. Nf3 {[%emt 0:00:56]} d5 {[%emt 0:00:34]} 3. c4 {[%emt 0:00:29]} dxc4 {[%emt 0:01:08]} 4. e3 {[%emt 0:01:07]} e6 {[%emt 0:00:09]} 5. Bxc4 {[%emt 0:00:12]} c5 {[%emt 0:00:05]} 6. O-O {[%emt 0:00:26]} a6 {[%emt 0:00:16]} 7. a4 {[%emt 0:01:19]} Nc6 {[%emt 0:00:50]} 8. Qe2 {[%emt 0:01:41]} Be7 {[%emt 0:06:16]} 9. Nc3 {[%emt 0:01:35]} O-O {[%emt 0:03:03]} 10. Rd1 {[%emt 0:00:35]} Qc7 {[%emt 0:00:21]} 11. d5 {[%emt 0:00:41]} exd5 {[%emt 0:00:15]} 12. Nxd5 {[%emt 0:00:19]} Nxd5 {[%emt 0:00:06]} 13. Bxd5 {[%emt 0:00:59]} Bf6 {[%emt 0:00:21]} 14. h3 {[%emt 0:08:02]} Re8 {[%emt 0:00:22]} 15. e4 {[%emt 0:07:49]} Be6 {[%emt 0:00:36]} 16. Qc4 {[%emt 0:12:01]} Bxd5 {[%emt 0:02:31]} 17. exd5 {[%emt 0:01:43]} Nd4 {[%emt 0:01:15]} 18. Nxd4 {[%emt 0:03:31]} Bxd4 {[%emt 0:00:07]} 19. Ra3 {[%emt 0:03:08]} Re4 {[%emt 0:21:24]} 20. Be3 {[%emt 0:07:22]} Rae8 {[%emt 0:04:28]} 21. Qc2 {[%emt 0:10:43]} Qd6 {[%emt 0:06:57]} 22. Rad3 {[%emt 0:01:15]} Bxe3 {[%emt 0:10:29]} 23. Rxe3 {[%emt 0:01:11]} Rxe3 {[%emt 0:00:14]} 24. fxe3 {[%emt 0:00:02]} Rxe3 {[%emt 0:07:19]} 25. b4 {[%emt 0:00:15]} c4 {[%emt 0:14:08]} 26. Qxc4 {[%emt 0:00:51]} Re8 {[%emt 0:00:19]} 27. Qc5 {[%emt 0:02:48]} Rd8 {[%emt 0:02:40]} 28. a5 {[%emt 0:09:10]} g6 {[%emt 0:01:17]} 29. Qxd6 {[%emt 0:00:49]} Rxd6 {[%emt 0:00:01]} 30. Kf2 {[%emt 0:00:07]} Kf8 {[%emt 0:03:47]} 31. Ke3 {[%emt 0:00:33]} Ke7 {[%emt 0:00:11]} 32. Kd4 {[%emt 0:00:05]} Rf6 {[%emt 0:01:42]} 33. Kc5 {[%emt 0:13:44]} Kd7 {[%emt 0:00:10]} 34. d6 {[%emt 0:02:00]} Rf5+ {[%emt 0:04:21]} 35. Rd5 {[%emt 0:00:06]} Rf2 {[%emt 0:05:34]} 36. Kb6 {[%emt 0:00:52]} Rf4 {[%emt 0:02:56]} 37. b5 {[%emt 0:00:19]} axb5 {[%emt 0:00:15]} 38. Kxb7 {[%emt 0:00:12]} b4 {[%emt 0:00:01]} 39. a6 {[%emt 0:00:40]} b3 {[%emt 0:00:03]} 40. Rb5 {[%emt 0:00:05]} 1-0

[Event "Danish Skakligaen 2024-25"]
[Site "Denmark"]
[Date "2024.11.02"]
[Round "1.8"]
[White "Jakobsen, Niels Nybo"]
[Black "Noer, Martin Stampe"]
[Result "1-0"]
[ECO "A06"]
[WhiteElo "2043"]
[BlackElo "1902"]
[Annotator "RC"]
[PlyCount "125"]
[EventDate "2024.11.02"]
[EventType "team-tourn"]
[EventCountry "DEN"]
[SourceTitle "playchess.com"]
[Source "ChessBase"]
[SourceQuality "1"]
[TimeControl "40/5400+30:1800+30"]

1. Nf3 {[%emt 0:00:23]} d5 {[%emt 0:00:12]} 2. g3 {[%emt 0:00:13]} Nf6 {[%emt 0:00:20]} 3. Bg2 {[%emt 0:00:34]} c5 {[%emt 0:01:27]} 4. O-O {[%emt 0:00:25]} Nc6 {[%emt 0:00:33]} 5. d3 {[%emt 0:00:43]} Bf5 {[%emt 0:01:33]} 6. Nbd2 {[%emt 0:02:29]} e6 {[%emt 0:00:51]} 7. Nh4 {[%emt 0:04:37]} Bg4 {[%emt 0:04:44]} 8. h3 {[%emt 0:01:21]} Bh5 {[%emt 0:03:52]} 9. c4 {[%emt 0:03:50]} Be7 {[%emt 0:02:52]} 10. cxd5 {[%emt 0:04:54]} exd5 {[%emt 0:00:21]} 11. Nf5 {[%emt 0:02:18]} O-O {[%emt 0:02:07]} 12. Nf3 {[%emt 0:06:19]} Re8 {[%emt 0:03:23]} 13. Nxe7+ {[%emt 0:00:36]} Qxe7 14. g4 {[%emt 0:05:40]} Bg6 {[%emt 0:02:25]} 15. Re1 {[%emt 0:01:02]} Qd6 {[%emt 0:05:34]} 16. Bg5 {[%emt 0:03:39]} h6 {[%emt 0:05:45]} 17. Bh4 {[%emt 0:01:48]} Rad8 {[%emt 0:03:55]} 18. Bg3 {[%emt 0:01:52]} Qe6 {[%emt 0:07:33]} 19. Rc1 {[%emt 0:03:09]} b6 {[%emt 0:02:42]} 20. Qa4 {[%emt 0:02:39]} Qd7 {[%emt 0:05:26]} 21. a3 {[%emt 0:08:59]} Nd4 {[%emt 0:06:03]} 22. Qd1 {[%emt 0:07:50]} Nxf3+ {[%emt 0:01:45]} 23. Bxf3 {[%emt 0:00:09]} Qb5 {[%emt 0:01:30]} 24. Qd2 {[%emt 0:02:07]} Qa4 {[%emt 0:03:20]} 25. b4 {[%emt 0:05:11]} Ne4 {[%emt 0:11:56]} 26. Qb2 {[%emt 0:03:20]} Nxg3 {[%emt 0:01:00]} 27. fxg3 {[%emt 0:00:04]} Qb5 {[%emt 0:04:19]} 28. Qc3 {[%emt 0:04:15]} d4 {[%emt 0:02:12]} 29. Qd2 {[%emt 0:02:20]} Re3 {[%emt 0:01:00]} 30. Kf2 {[%emt 0:02:42]} Rc8 31. Rc4 {[%emt 0:02:42]} Qe8 {[%emt 0:06:42]} 32. Rec1 {[%emt 0:00:30]} Re5 {[%emt 0:05:26]} 33. Qf4 {[%emt 0:01:33]} f6 {[%emt 0:01:25]} 34. bxc5 {[%emt 0:02:14]} bxc5 {[%emt 0:01:11]} 35. Qxd4 {[%emt 0:02:34]} cxd4 {[%emt 0:02:39]} 36. Rxc8 {[%emt 0:00:06]} Qxc8 {[%emt 0:01:49]} 37. Rxc8+ {[%emt 0:00:06]} Kf7 {[%emt 0:00:11]} 38. Rc7+ {[%emt 0:01:32]} Re7 {[%emt 0:00:05]} 39. Bd5+ {[%emt 0:00:09]} Kf8 {[%emt 0:00:11]} 40. Rc8+ {[%emt 0:01:11]} Re8 {[%emt 0:00:39]} 41. Rc4 {[%emt 0:30:33]} Rd8 {[%emt 0:03:31]} 42. Rxd4 {[%emt 0:00:00]} Bf7 {[%emt 0:01:20]} 43. e4 {[%emt 0:00:00]} Ke7 {[%emt 0:02:02]} 44. Ke3 {[%emt 0:00:00]} Bxd5 {[%emt 0:00:50]} 45. Rxd5 {[%emt 0:00:00]} Rb8 {[%emt 0:00:44]} 46. Ra5 {[%emt 0:00:00]} Rb7 {[%emt 0:00:26]} 47. Kf4 {[%emt 0:00:00]} Ke6 {[%emt 0:01:32]} 48. Ra6+ {[%emt 0:00:00]} Kf7 {[%emt 0:00:41]} 49. d4 {[%emt 0:00:00]} Rc7 {[%emt 0:01:25]} 50. e5 {[%emt 0:00:00]} fxe5+ {[%emt 0:00:32]} 51. Kxe5 {[%emt 0:00:00]} Re7+ {[%emt 0:01:08]} 52. Kd5 {[%emt 0:00:00]} Rd7+ {[%emt 0:03:14]} 53. Kc5 {[%emt 0:00:00]} Re7 {[%emt 0:00:24]} 54. d5 {[%emt 0:00:00]} Ke8 {[%emt 0:03:24]} 55. Kc6 {[%emt 0:00:00]} Rf7 {[%emt 0:01:04]} 56. d6 {[%emt 0:00:00]} Kd8 {[%emt 0:00:42]} 57. Ra5 {[%emt 0:00:00]} Kc8 {[%emt 0:00:42]} 58. Rf5 {[%emt 0:00:00]} Rf6 {[%emt 0:03:39]} 59. a4 {[%emt 0:00:00]} Kd8 {[%emt 0:00:55]} 60. a5 {[%emt 0:00:00]} Kc8 {[%emt 0:00:21]} 61. Rxf6 {[%emt 0:00:00]} gxf6 {[%emt 0:00:10]} 62. d7+ {[%emt 0:00:00]} Kd8 {[%emt 0:00:07]} 63. a6 {[%emt 0:00:00]} 1-0

[Event "Danish Skakligaen 2024-25"]
[Site "Denmark"]
[Date "2024.11.02"]
[Round "1.8"]
[White "Pedersen, Peer Ole"]
[Black "Jaksland, Tim"]
[Result "1/2-1/2"]
[ECO "A21"]
[WhiteElo "2020"]
[BlackElo "2116"]
[Annotator "RC"]
[PlyCount "43"]
[EventDate "2024.11.02"]
[EventType "team-tourn"]
[EventCountry "DEN"]
[SourceTitle "playchess.com"]
[Source "ChessBase"]
[SourceQuality "1"]
[TimeControl "40/5400+30:1800+30"]

1. c4 {[%emt 0:00:10]} e5 {[%emt 0:00:15]} 2. Nc3 {[%emt 0:00:22]} Bb4 {[%emt 0:00:49]} 3. Qc2 {[%emt 0:03:07]} Nf6 {[%emt 0:03:05]} 4. e4 {[%emt 0:02:18]} Nc6 {[%emt 0:05:22]} 5. Nge2 {[%emt 0:09:17]} d6 {[%emt 0:17:20]} 6. a3 {[%emt 0:14:46]} Bc5 {[%emt 0:01:28]} 7. b4 {[%emt 0:03:46]} Bb6 {[%emt 0:03:49]} 8. Nd5 {[%emt 0:12:44]} Nd4 {[%emt 0:09:46]} 9. Nxd4 {[%emt 0:05:58]} Bxd4 {[%emt 0:01:06]} 10. Bb2 {[%emt 0:02:15]} Bxb2 {[%emt 0:02:21]} 11. Nxf6+ {[%emt 0:00:58]} Qxf6 {[%emt 0:00:07]} 12. Qxb2 {[%emt 0:00:09]} O-O {[%emt 0:02:00]} 13. Be2 {[%emt 0:00:12]} Qg6 {[%emt 0:04:49]} 14. Bf3 {[%emt 0:02:21]} Qf6 {[%emt 0:13:48]} 15. Qc3 {[%emt 0:03:02]} c5 {[%emt 0:07:20]} 16. O-O {[%emt 0:04:24]} Qe7 {[%emt 0:02:25]} 17. Rae1 {[%emt 0:07:13]} Qc7 {[%emt 0:04:30]} 18. Be2 {[%emt 0:06:11]} Be6 {[%emt 0:02:07]} 19. b5 {[%emt 0:03:26]} Rae8 {[%emt 0:05:51]} 20. Bf3 {[%emt 0:02:17]} Kh8 {[%emt 0:02:40]} 21. h3 {[%emt 0:03:47]} Qe7 {[%emt 0:03:02]} 22. Bg4 {[%emt 0:02:18]} 1/2-1/2